[Event "Late-Titled-Tuesday-Blitz-September-12-2023"]
[Site "Chess.com"]
[Date "2023.09.12"]
[Round "3"]
[White "pirulillo"]
[Black "DuleMudule"]
[Result "0-1"]
[WhiteElo "2326"]
[BlackElo "2761"]
[TimeControl "180+1"]
[EndTime "14:24:52 PDT"]
[Termination "DuleMudule won by checkmate"]

1. e4 {[%clk 0:02:54.2]} 1... c6 {[%clk 0:02:59.4]} 2. d4 {[%clk 0:02:48.3]}
2... d5 {[%clk 0:03:00.3]} 3. Nc3 {[%clk 0:02:48.3]} 3... dxe4 {[%clk
0:03:00.5]} 4. Nxe4 {[%clk 0:02:49.2]} 4... Nf6 {[%clk 0:03:01]} 5. Ng3 {[%clk
0:02:49.3]} 5... h5 {[%clk 0:02:59.8]} 6. h4 {[%clk 0:02:47.7]} 6... g6 {[%clk
0:03:00]} 7. Bc4 {[%clk 0:02:40.2]} 7... Bg7 {[%clk 0:02:59.1]} 8. N1e2 {[%clk
0:02:40.2]} 8... O-O {[%clk 0:02:51.2]} 9. Qd3 {[%clk 0:02:22.9]} 9... e6 {[%clk
0:02:30.3]} 10. Bg5 {[%clk 0:02:17.6]} 10... b5 {[%clk 0:02:29.4]} 11. Bb3
{[%clk 0:02:16.3]} 11... a5 {[%clk 0:02:29.8]} 12. a4 {[%clk 0:02:12.1]} 12...
Ba6 {[%clk 0:02:27]} 13. Nf4 {[%clk 0:01:37.6]} 13... b4 {[%clk 0:02:23.2]} 14.
Bc4 {[%clk 0:01:35.9]} 14... Bxc4 {[%clk 0:02:21.3]} 15. Qxc4 {[%clk 0:01:36.8]}
15... Nbd7 {[%clk 0:02:17.8]} 16. Nd3 {[%clk 0:01:24.4]} 16... Nb6 {[%clk
0:02:10.7]} 17. Qxc6 {[%clk 0:01:13.3]} 17... Rc8 {[%clk 0:02:09.9]} 18. Qf3
{[%clk 0:01:10.7]} 18... Qxd4 {[%clk 0:02:06.5]} 19. O-O-O {[%clk 0:00:59.9]}
19... b3 {[%clk 0:02:00.1]} 20. c3 {[%clk 0:00:51.2]} 20... Rxc3+ {[%clk
0:01:59.6]} 21. Kb1 {[%clk 0:00:51.8]} 21... Nfd5 {[%clk 0:01:59.1]} 22. Qe2
{[%clk 0:00:10.7]} 22... Qxa4 {[%clk 0:01:56.2]} 23. bxc3 {[%clk 0:00:07]} 23...
Nxc3+ {[%clk 0:01:55.9]} 24. Kb2 {[%clk 0:00:07]} 24... Nxe2+ {[%clk 0:01:56.8]}
25. Kb1 {[%clk 0:00:04]} 25... Qa2# {[%clk 0:01:56.9]} 0-1

[Event "Late-Titled-Tuesday-Blitz-September-12-2023"]
[Site "Chess.com"]
[Date "2023.09.12"]
[Round "3"]
[White "leoduarte"]
[Black "Tiqr777"]
[Result "1-0"]
[WhiteElo "2464"]
[BlackElo "2616"]
[TimeControl "180+1"]
[EndTime "14:24:56 PDT"]
[Termination "leoduarte won by resignation"]

1. d4 {[%clk 0:03:00.9]} 1... Nf6 {[%clk 0:02:59.7]} 2. c4 {[%clk 0:03:01.3]}
2... c5 {[%clk 0:03:00.1]} 3. d5 {[%clk 0:02:59.5]} 3... e6 {[%clk 0:03:00.6]}
4. Nc3 {[%clk 0:02:59.3]} 4... exd5 {[%clk 0:03:01.2]} 5. cxd5 {[%clk
0:03:00.2]} 5... d6 {[%clk 0:03:01.7]} 6. Nf3 {[%clk 0:03:00.1]} 6... g6 {[%clk
0:03:02.1]} 7. Bf4 {[%clk 0:02:59.7]} 7... a6 {[%clk 0:03:02.1]} 8. a4 {[%clk
0:02:58.3]} 8... Bg7 {[%clk 0:03:02.5]} 9. h3 {[%clk 0:02:59]} 9... O-O {[%clk
0:03:02.5]} 10. e3 {[%clk 0:02:59.2]} 10... Re8 {[%clk 0:03:01.4]} 11. Bd3
{[%clk 0:02:51.6]} 11... Qc7 {[%clk 0:03:00.6]} 12. O-O {[%clk 0:02:51.2]} 12...
Nbd7 {[%clk 0:03:01]} 13. Bh2 {[%clk 0:02:50.5]} 13... Rb8 {[%clk 0:02:58.6]}
14. a5 {[%clk 0:02:49.2]} 14... b5 {[%clk 0:02:58.1]} 15. axb6 {[%clk
0:02:50.1]} 15... Rxb6 {[%clk 0:02:58.4]} 16. Ra2 {[%clk 0:02:50.7]} 16... Rb4
{[%clk 0:02:53.3]} 17. Bxa6 {[%clk 0:02:30.9]} 17... Bxa6 {[%clk 0:02:52.6]} 18.
Rxa6 {[%clk 0:02:31.8]} 18... Nb6 {[%clk 0:02:52.9]} 19. e4 {[%clk 0:02:15.7]}
19... Rxb2 {[%clk 0:02:46.5]} 20. e5 {[%clk 0:02:08.9]} 20... dxe5 {[%clk
0:02:40.5]} 21. d6 {[%clk 0:01:31.4]} 21... Qb7 {[%clk 0:02:40.2]} 22. Qa1
{[%clk 0:01:31.9]} 22... Rb3 {[%clk 0:02:34.4]} 23. Bxe5 {[%clk 0:01:25.5]}
23... Nfd7 {[%clk 0:02:16.9]} 24. Bxg7 {[%clk 0:01:21.7]} 24... Kxg7 {[%clk
0:02:17.2]} 25. Ra7 {[%clk 0:01:08.6]} 25... Qc6 {[%clk 0:01:15.5]} 26. Nd5+
{[%clk 0:01:06.6]} 26... Kg8 {[%clk 0:00:55.4]} 27. Ne7+ {[%clk 0:01:05.3]} 1-0

[Event "Late-Titled-Tuesday-Blitz-September-12-2023"]
[Site "Chess.com"]
[Date "2023.09.12"]
[Round "3"]
[White "Bigfish1995"]
[Black "enestnrvrd"]
[Result "1-0"]
[WhiteElo "3050"]
[BlackElo "2726"]
[TimeControl "180+1"]
[EndTime "14:25:11 PDT"]
[Termination "Bigfish1995 won by resignation"]

1. h3 {[%clk 0:00:50.5]} 1... d5 {[%clk 0:02:57.8]} 2. Nf3 {[%clk 0:00:50.4]}
2... Nf6 {[%clk 0:02:57.5]} 3. e3 {[%clk 0:00:50.8]} 3... a6 {[%clk 0:02:56.9]}
4. b3 {[%clk 0:00:50.2]} 4... c5 {[%clk 0:02:57.3]} 5. Bb2 {[%clk 0:00:49.5]}
5... Nc6 {[%clk 0:02:58]} 6. d4 {[%clk 0:00:48.1]} 6... Bf5 {[%clk 0:02:57.4]}
7. dxc5 {[%clk 0:00:47]} 7... e6 {[%clk 0:02:57.5]} 8. Nd4 {[%clk 0:00:45.4]}
8... Bxc5 {[%clk 0:02:53.6]} 9. Nxf5 {[%clk 0:00:44.5]} 9... exf5 {[%clk
0:02:54.5]} 10. Bd3 {[%clk 0:00:44.6]} 10... Ne4 {[%clk 0:02:47.9]} 11. O-O
{[%clk 0:00:44]} 11... Qg5 {[%clk 0:02:43.4]} 12. Bxe4 {[%clk 0:00:31.2]} 12...
fxe4 {[%clk 0:02:42.6]} 13. c4 {[%clk 0:00:31.5]} 13... dxc4 {[%clk 0:02:27.2]}
14. Nc3 {[%clk 0:00:31.3]} 14... Qf5 {[%clk 0:01:47.2]} 15. Qb1 {[%clk 0:00:30]}
15... cxb3 {[%clk 0:01:22.1]} 16. Nxe4 {[%clk 0:00:29.9]} 16... bxa2 {[%clk
0:00:53.7]} 17. Nd6+ {[%clk 0:00:28.9]} 1-0

[Event "Late-Titled-Tuesday-Blitz-September-12-2023"]
[Site "Chess.com"]
[Date "2023.09.12"]
[Round "3"]
[White "Sjakkerntobi"]
[Black "nitpicker"]
[Result "1-0"]
[WhiteElo "2522"]
[BlackElo "2260"]
[TimeControl "180+1"]
[EndTime "14:25:20 PDT"]
[Termination "Sjakkerntobi won on time"]

1. f4 {[%clk 0:03:00.9]} 1... Nf6 {[%clk 0:02:58.7]} 2. Nf3 {[%clk 0:03:01.3]}
2... g6 {[%clk 0:02:57.3]} 3. g3 {[%clk 0:03:01.5]} 3... c5 {[%clk 0:02:53.9]}
4. Bg2 {[%clk 0:03:01.9]} 4... d6 {[%clk 0:02:54]} 5. O-O {[%clk 0:03:02.6]}
5... Nc6 {[%clk 0:02:54.2]} 6. d3 {[%clk 0:03:03.2]} 6... Bg7 {[%clk 0:02:53.9]}
7. Nc3 {[%clk 0:03:04.1]} 7... O-O {[%clk 0:02:53.3]} 8. e4 {[%clk 0:03:04.8]}
8... Bd7 {[%clk 0:02:50.7]} 9. h3 {[%clk 0:03:04.7]} 9... Rb8 {[%clk 0:02:49.1]}
10. g4 {[%clk 0:03:05.1]} 10... Ne8 {[%clk 0:02:49.6]} 11. Qe1 {[%clk
0:03:05.3]} 11... f5 {[%clk 0:02:42.5]} 12. exf5 {[%clk 0:03:01.8]} 12... gxf5
{[%clk 0:02:41.8]} 13. Qg3 {[%clk 0:02:58.2]} 13... Nc7 {[%clk 0:02:34.8]} 14.
Bd2 {[%clk 0:02:58.2]} 14... b5 {[%clk 0:02:34]} 15. Rae1 {[%clk 0:02:58.1]}
15... b4 {[%clk 0:02:32]} 16. Nd1 {[%clk 0:02:58.4]} 16... Nd4 {[%clk
0:02:15.9]} 17. Nxd4 {[%clk 0:02:57.6]} 17... Bxd4+ {[%clk 0:02:15.1]} 18. Kh1
{[%clk 0:02:57.6]} 18... fxg4 {[%clk 0:02:07.5]} 19. hxg4 {[%clk 0:02:55.7]}
19... Kh8 {[%clk 0:02:06.8]} 20. Be3 {[%clk 0:02:43.9]} 20... Bg7 {[%clk
0:02:05.8]} 21. Qh4 {[%clk 0:02:33.6]} 21... e5 {[%clk 0:01:46.5]} 22. Qxd8
{[%clk 0:02:31.3]} 22... Rbxd8 {[%clk 0:01:45.2]} 23. f5 {[%clk 0:02:32.2]}
23... h5 {[%clk 0:01:38.4]} 24. gxh5 {[%clk 0:02:24.2]} 24... Rxf5 {[%clk
0:01:30.2]} 25. Rxf5 {[%clk 0:02:13.7]} 25... Bxf5 {[%clk 0:01:29.9]} 26. Rf1
{[%clk 0:02:14.6]} 26... Be6 {[%clk 0:01:00.2]} 27. h6 {[%clk 0:02:13.5]} 27...
Bf8 {[%clk 0:00:59.5]} 28. Bg5 {[%clk 0:02:05.2]} 28... Re8 {[%clk 0:00:39.7]}
29. Bf6+ {[%clk 0:01:59.2]} 29... Kh7 {[%clk 0:00:33.7]} 30. Be4+ {[%clk
0:01:54.3]} 30... Kxh6 {[%clk 0:00:33.7]} 31. Rf2 {[%clk 0:01:54.8]} 31... Kh5
{[%clk 0:00:20.5]} 32. Ne3 {[%clk 0:01:47.1]} 32... Bh3 {[%clk 0:00:01.8]} 33.
Rh2 {[%clk 0:01:41.3]} 1-0

[Event "Late-Titled-Tuesday-Blitz-September-12-2023"]
[Site "Chess.com"]
[Date "2023.09.12"]
[Round "3"]
[White "SaqoChess_Twitch"]
[Black "BrandonJacobson"]
[Result "0-1"]
[WhiteElo "2727"]
[BlackElo "3055"]
[TimeControl "180+1"]
[EndTime "14:25:24 PDT"]
[Termination "BrandonJacobson won by resignation"]

1. d4 {[%clk 0:03:00.9]} 1... Nf6 {[%clk 0:02:59.9]} 2. c4 {[%clk 0:03:01.5]}
2... g6 {[%clk 0:03:00.2]} 3. Nc3 {[%clk 0:03:02.1]} 3... Bg7 {[%clk 0:03:00.7]}
4. Nf3 {[%clk 0:03:02.6]} 4... d6 {[%clk 0:03:01]} 5. Bg5 {[%clk 0:03:03.1]}
5... h6 {[%clk 0:02:58.5]} 6. Bh4 {[%clk 0:03:02.4]} 6... g5 {[%clk 0:02:59.1]}
7. Bg3 {[%clk 0:03:02.9]} 7... Nh5 {[%clk 0:02:59.7]} 8. e3 {[%clk 0:02:58.9]}
8... c5 {[%clk 0:03:00]} 9. dxc5 {[%clk 0:02:58.2]} 9... Nxg3 {[%clk 0:02:54.2]}
10. hxg3 {[%clk 0:02:57.4]} 10... dxc5 {[%clk 0:02:54.7]} 11. Qxd8+ {[%clk
0:02:57.2]} 11... Kxd8 {[%clk 0:02:55.6]} 12. O-O-O+ {[%clk 0:02:57.6]} 12...
Nd7 {[%clk 0:02:52.4]} 13. Bd3 {[%clk 0:02:43.9]} 13... e6 {[%clk 0:02:46.7]}
14. Ne4 {[%clk 0:02:38]} 14... Ke7 {[%clk 0:02:45.6]} 15. Bc2 {[%clk 0:02:35.7]}
15... b6 {[%clk 0:02:40.6]} 16. Nd6 {[%clk 0:02:34.5]} 16... Ba6 {[%clk
0:02:40.6]} 17. Be4 {[%clk 0:02:20.1]} 17... Rad8 {[%clk 0:02:36.7]} 18. Bb7
{[%clk 0:02:18.5]} 18... Bxb7 {[%clk 0:02:27.8]} 19. Nxb7 {[%clk 0:02:19.4]}
19... Rb8 {[%clk 0:02:27.9]} 20. Nd6 {[%clk 0:02:18.8]} 20... Rhd8 {[%clk
0:02:06.4]} 21. Nb5 {[%clk 0:02:18.3]} 21... a6 {[%clk 0:02:01.9]} 22. Na3
{[%clk 0:02:08.7]} 22... g4 {[%clk 0:01:52.5]} 23. Nd2 {[%clk 0:02:04]} 23...
Ne5 {[%clk 0:01:52.1]} 24. Ne4 {[%clk 0:01:21.7]} 24... f5 {[%clk 0:01:42.2]}
25. Rxd8 {[%clk 0:01:06.3]} 25... Rxd8 {[%clk 0:01:41.4]} 26. Nc3 {[%clk
0:01:06.8]} 26... Nd3+ {[%clk 0:01:39.8]} 27. Kc2 {[%clk 0:01:07.3]} 27... Nxf2
{[%clk 0:01:36.9]} 28. Rf1 {[%clk 0:01:04.6]} 28... Bxc3 {[%clk 0:01:33.6]} 29.
Rxf2 {[%clk 0:00:48.5]} 29... Be1 {[%clk 0:01:33.6]} 30. Re2 {[%clk 0:00:46.9]}
30... Bxg3 {[%clk 0:01:33.7]} 31. Nb1 {[%clk 0:00:47.5]} 31... h5 {[%clk
0:01:31.3]} 32. a3 {[%clk 0:00:45.2]} 32... h4 {[%clk 0:01:30.8]} 33. b4 {[%clk
0:00:45.7]} 33... h3 {[%clk 0:01:27.6]} 34. gxh3 {[%clk 0:00:46.6]} 34... gxh3
{[%clk 0:01:28.2]} 35. Nc3 {[%clk 0:00:39.2]} 35... h2 {[%clk 0:01:27.6]} 36.
Rxh2 {[%clk 0:00:40]} 36... Bxh2 {[%clk 0:01:26.2]} 37. e4 {[%clk 0:00:40.9]}
37... Be5 {[%clk 0:01:24.1]} 38. b5 {[%clk 0:00:41.4]} 38... Bxc3 {[%clk
0:01:24.2]} 39. e5 {[%clk 0:00:40.9]} 39... Bxe5 {[%clk 0:01:23.7]} 40. Kb3
{[%clk 0:00:41.2]} 40... axb5 {[%clk 0:01:23.3]} 41. cxb5 {[%clk 0:00:41.2]}
41... Rd4 {[%clk 0:01:23.9]} 0-1

[Event "Late-Titled-Tuesday-Blitz-September-12-2023"]
[Site "Chess.com"]
[Date "2023.09.12"]
[Round "3"]
[White "Parhamov"]
[Black "KNVB"]
[Result "1-0"]
[WhiteElo "3104"]
[BlackElo "2778"]
[TimeControl "180+1"]
[EndTime "14:25:50 PDT"]
[Termination "Parhamov won by resignation"]

1. d4 {[%clk 0:03:00.9]} 1... Nf6 {[%clk 0:02:59.8]} 2. c4 {[%clk 0:03:00.7]}
2... e6 {[%clk 0:02:59.4]} 3. Nf3 {[%clk 0:03:01]} 3... b6 {[%clk 0:02:58.7]} 4.
g3 {[%clk 0:03:00.6]} 4... Ba6 {[%clk 0:02:58.7]} 5. Nbd2 {[%clk 0:03:00.4]}
5... Bb4 {[%clk 0:02:57.2]} 6. Qc2 {[%clk 0:02:59.5]} 6... Bb7 {[%clk
0:02:56.5]} 7. Bg2 {[%clk 0:02:59.3]} 7... Be4 {[%clk 0:02:56.7]} 8. Qb3 {[%clk
0:02:59.4]} 8... Bxd2+ {[%clk 0:02:57]} 9. Bxd2 {[%clk 0:02:59]} 9... O-O {[%clk
0:02:56.5]} 10. O-O {[%clk 0:02:58.4]} 10... d6 {[%clk 0:02:57]} 11. Rfd1 {[%clk
0:02:57.8]} 11... Nbd7 {[%clk 0:02:54.3]} 12. Rac1 {[%clk 0:02:57.7]} 12... h6
{[%clk 0:02:36.2]} 13. Bf1 {[%clk 0:02:57]} 13... Qe7 {[%clk 0:02:18.3]} 14. Ne1
{[%clk 0:02:56.2]} 14... c5 {[%clk 0:02:17.2]} 15. f3 {[%clk 0:02:54.8]} 15...
Bb7 {[%clk 0:02:04.8]} 16. dxc5 {[%clk 0:02:54.8]} 16... dxc5 {[%clk 0:01:35.1]}
17. e4 {[%clk 0:02:53.9]} 17... Ne5 {[%clk 0:01:22.1]} 18. Bc3 {[%clk
0:02:51.7]} 18... Nc6 {[%clk 0:00:56.4]} 19. e5 {[%clk 0:02:50.9]} 19... Nd7
{[%clk 0:00:53.4]} 20. f4 {[%clk 0:02:51.3]} 20... Rfd8 {[%clk 0:00:48.3]} 21.
Qc2 {[%clk 0:02:48.2]} 21... Nf8 {[%clk 0:00:46.8]} 22. Bg2 {[%clk 0:02:48]}
22... Rxd1 {[%clk 0:00:37.9]} 23. Rxd1 {[%clk 0:02:48.1]} 23... Rd8 {[%clk
0:00:38.8]} 24. a3 {[%clk 0:02:48.2]} 24... Rxd1 {[%clk 0:00:30.9]} 25. Qxd1
{[%clk 0:02:47.3]} 25... Qd8 {[%clk 0:00:31.6]} 26. Qd3 {[%clk 0:02:44.6]} 26...
Qxd3 {[%clk 0:00:19.8]} 27. Nxd3 {[%clk 0:02:44.8]} 27... Nd8 {[%clk 0:00:20.6]}
28. Bf1 {[%clk 0:02:41.2]} 28... h5 {[%clk 0:00:16.3]} 29. Kf2 {[%clk
0:02:41.2]} 29... Nd7 {[%clk 0:00:16]} 30. Ke3 {[%clk 0:02:41.2]} 30... a5
{[%clk 0:00:11.1]} 31. Nf2 {[%clk 0:02:39.8]} 31... Kf8 {[%clk 0:00:05.7]} 32.
h3 {[%clk 0:02:37.5]} 32... Ke7 {[%clk 0:00:03.6]} 33. Be2 {[%clk 0:02:36.7]}
33... g6 {[%clk 0:00:03.9]} 34. g4 {[%clk 0:02:37.2]} 34... hxg4 {[%clk
0:00:04.8]} 35. hxg4 {[%clk 0:02:38.1]} 35... Bc6 {[%clk 0:00:01.7]} 36. Nh3
{[%clk 0:02:35.5]} 36... Ke8 {[%clk 0:00:02.1]} 37. Ng5 {[%clk 0:02:35.8]} 37...
Ke7 {[%clk 0:00:02.4]} 38. Nh7 {[%clk 0:02:35.4]} 38... Nb7 {[%clk 0:00:02.8]}
39. Kf2 {[%clk 0:02:35.2]} 39... Ke8 {[%clk 0:00:02.7]} 40. Kg3 {[%clk
0:02:35.4]} 40... Ke7 {[%clk 0:00:02.6]} 41. Kh4 {[%clk 0:02:35.7]} 41... Be4
{[%clk 0:00:02.3]} 42. Kg5 {[%clk 0:02:36]} 42... Nd8 {[%clk 0:00:02.1]} 43. Kh6
{[%clk 0:02:36.3]} 43... Nf8 {[%clk 0:00:01.7]} 44. Nf6 {[%clk 0:02:35.9]} 44...
Bg2 {[%clk 0:00:01.7]} 45. Kg7 {[%clk 0:02:35.6]} 45... Nd7 {[%clk 0:00:01.4]}
46. Ng8+ {[%clk 0:02:29.6]} 46... Ke8 {[%clk 0:00:01.7]} 47. Nh6 {[%clk
0:02:28.5]} 47... Nb8 {[%clk 0:00:01.3]} 48. Be1 {[%clk 0:02:28.1]} 48... Nbc6
{[%clk 0:00:01.3]} 49. Bh4 {[%clk 0:02:28.3]} 49... Be4 {[%clk 0:00:02]} 50. Bd1
{[%clk 0:02:27.2]} 50... Bd3 {[%clk 0:00:02]} 51. Ba4 {[%clk 0:02:27.3]} 51...
Be4 {[%clk 0:00:01.6]} 52. Bxd8 {[%clk 0:02:26.8]} 52... Kxd8 {[%clk 0:00:02.5]}
53. Nxf7+ {[%clk 0:02:26.9]} 53... Kc7 {[%clk 0:00:03.2]} 54. Bxc6 {[%clk
0:02:26.7]} 54... Kxc6 {[%clk 0:00:02.8]} 55. Nd6 {[%clk 0:02:27.2]} 55... Bf3
{[%clk 0:00:02.1]} 56. Kf6 {[%clk 0:02:27.4]} 56... Bxg4 {[%clk 0:00:02.4]} 57.
Kxg6 {[%clk 0:02:27.2]} 57... a4 {[%clk 0:00:02.6]} 58. Kf6 {[%clk 0:02:27.3]}
58... Be2 {[%clk 0:00:01.3]} 59. Kxe6 {[%clk 0:02:27]} 59... b5 {[%clk
0:00:01.8]} 60. cxb5+ {[%clk 0:02:27]} 60... Bxb5 {[%clk 0:00:02.3]} 61. Nxb5
{[%clk 0:02:27.1]} 61... Kxb5 {[%clk 0:00:02.7]} 62. f5 {[%clk 0:02:28]} 62...
Kc4 {[%clk 0:00:03.6]} 63. f6 {[%clk 0:02:28.8]} 63... Kb3 {[%clk 0:00:04.5]}
64. f7 {[%clk 0:02:29.3]} 64... c4 {[%clk 0:00:05.3]} 65. f8=Q {[%clk
0:02:29.9]} 65... Kxb2 {[%clk 0:00:06.2]} 66. Qb4+ {[%clk 0:02:30.3]} 66... Ka2
{[%clk 0:00:06.1]} 1-0

[Event "Late-Titled-Tuesday-Blitz-September-12-2023"]
[Site "Chess.com"]
[Date "2023.09.12"]
[Round "3"]
[White "Zampronha1971"]
[Black "PotapovaM"]
[Result "0-1"]
[WhiteElo "2313"]
[BlackElo "2639"]
[TimeControl "180+1"]
[EndTime "14:25:50 PDT"]
[Termination "PotapovaM won by resignation"]

1. e4 {[%clk 0:03:00.9]} 1... c5 {[%clk 0:02:59]} 2. Nf3 {[%clk 0:03:01.4]} 2...
d6 {[%clk 0:02:58.5]} 3. d4 {[%clk 0:03:02]} 3... cxd4 {[%clk 0:02:59.4]} 4.
Nxd4 {[%clk 0:03:02.1]} 4... Nf6 {[%clk 0:03:00]} 5. Nc3 {[%clk 0:03:02.5]} 5...
Nc6 {[%clk 0:02:59.3]} 6. Bg5 {[%clk 0:03:02]} 6... e6 {[%clk 0:02:58.9]} 7. Qd2
{[%clk 0:03:02]} 7... Be7 {[%clk 0:02:58.9]} 8. O-O-O {[%clk 0:03:02.5]} 8...
Bd7 {[%clk 0:02:58.6]} 9. f4 {[%clk 0:03:02.9]} 9... Nxd4 {[%clk 0:02:57.7]} 10.
Qxd4 {[%clk 0:03:02]} 10... h6 {[%clk 0:02:57.5]} 11. Bh4 {[%clk 0:02:48.8]}
11... Bc6 {[%clk 0:02:55.5]} 12. Bc4 {[%clk 0:02:43.4]} 12... Qb6 {[%clk
0:02:47.1]} 13. Qxb6 {[%clk 0:02:29]} 13... axb6 {[%clk 0:02:48]} 14. Rhe1
{[%clk 0:02:23.7]} 14... g5 {[%clk 0:02:41.8]} 15. fxg5 {[%clk 0:02:19.6]} 15...
Nd7 {[%clk 0:02:42]} 16. Kb1 {[%clk 0:02:12.7]} 16... hxg5 {[%clk 0:02:40.8]}
17. Bg3 {[%clk 0:02:12.3]} 17... Ne5 {[%clk 0:02:41.4]} 18. Bb3 {[%clk 0:02:08]}
18... b5 {[%clk 0:02:41.5]} 19. a3 {[%clk 0:01:43.1]} 19... O-O-O {[%clk
0:02:05.6]} 20. Na2 {[%clk 0:01:42.3]} 20... Ng6 {[%clk 0:01:56.6]} 21. Nb4
{[%clk 0:01:37.8]} 21... Nf4 {[%clk 0:01:46.5]} 22. Bxf4 {[%clk 0:01:35.9]}
22... gxf4 {[%clk 0:01:46.4]} 23. h3 {[%clk 0:01:34.5]} 23... Rdg8 {[%clk
0:01:44.2]} 24. Nxc6 {[%clk 0:01:32.7]} 24... bxc6 {[%clk 0:01:44.1]} 25. Re2
{[%clk 0:01:21.8]} 25... f3 {[%clk 0:01:35.7]} 26. gxf3 {[%clk 0:01:20.6]} 26...
Rxh3 {[%clk 0:01:35.9]} 27. Rf1 {[%clk 0:01:15.9]} 27... Rgg3 {[%clk 0:01:35.1]}
28. Re3 {[%clk 0:01:12.5]} 28... Kc7 {[%clk 0:01:33]} 29. a4 {[%clk 0:01:11.6]}
29... Kb6 {[%clk 0:01:30.8]} 30. axb5 {[%clk 0:01:11.3]} 30... Kxb5 {[%clk
0:01:30.4]} 31. c3 {[%clk 0:01:08.8]} 31... c5 {[%clk 0:01:26]} 32. Bd1 {[%clk
0:01:08.7]} 32... Bg5 {[%clk 0:01:19.6]} 33. Rd3 {[%clk 0:01:00.7]} 33... Bf4
{[%clk 0:01:19.4]} 34. Be2 {[%clk 0:00:58.7]} 34... Kc6 {[%clk 0:01:18.9]} 35.
Rdd1 {[%clk 0:00:56.4]} 35... Rh2 {[%clk 0:01:18.5]} 36. Rde1 {[%clk 0:00:28.3]}
36... Bd2 {[%clk 0:01:16.1]} 37. Rh1 {[%clk 0:00:28.9]} 37... Rgg2 {[%clk
0:01:07.2]} 38. Rxh2 {[%clk 0:00:27.4]} 38... Rxh2 {[%clk 0:01:07.2]} 0-1

[Event "Late-Titled-Tuesday-Blitz-September-12-2023"]
[Site "Chess.com"]
[Date "2023.09.12"]
[Round "3"]
[White "Gogolev_Artemy"]
[Black "Vaibhavraut99"]
[Result "0-1"]
[WhiteElo "2409"]
[BlackElo "2571"]
[TimeControl "180+1"]
[EndTime "14:25:53 PDT"]
[Termination "Vaibhavraut99 won by resignation"]

1. c4 {[%clk 0:02:59.6]} 1... c5 {[%clk 0:02:55.6]} 2. g3 {[%clk 0:02:55.5]}
2... g6 {[%clk 0:02:55.2]} 3. Bg2 {[%clk 0:02:55.7]} 3... Bg7 {[%clk 0:02:55.3]}
4. Nc3 {[%clk 0:02:56.4]} 4... Nc6 {[%clk 0:02:55.5]} 5. Nf3 {[%clk 0:02:54.4]}
5... d6 {[%clk 0:02:55.1]} 6. d3 {[%clk 0:02:39.3]} 6... a6 {[%clk 0:02:52.1]}
7. O-O {[%clk 0:02:38.8]} 7... Rb8 {[%clk 0:02:52.1]} 8. a4 {[%clk 0:02:37.7]}
8... Nf6 {[%clk 0:02:47.9]} 9. e4 {[%clk 0:02:35.4]} 9... O-O {[%clk 0:02:47.6]}
10. h3 {[%clk 0:02:35]} 10... Ne8 {[%clk 0:02:46.3]} 11. Be3 {[%clk 0:02:32.3]}
11... Nc7 {[%clk 0:02:43.2]} 12. Qd2 {[%clk 0:02:14.3]} 12... Re8 {[%clk
0:02:39]} 13. a5 {[%clk 0:02:08.1]} 13... Ne6 {[%clk 0:02:38.6]} 14. Nd5 {[%clk
0:02:06.9]} 14... Ned4 {[%clk 0:02:35]} 15. Ra3 {[%clk 0:01:43.1]} 15... Nxf3+
{[%clk 0:02:27.4]} 16. Bxf3 {[%clk 0:01:43.4]} 16... Bxh3 {[%clk 0:02:28.1]} 17.
Bg2 {[%clk 0:01:43.5]} 17... Bxg2 {[%clk 0:02:27.1]} 18. Kxg2 {[%clk 0:01:44.4]}
18... e6 {[%clk 0:02:23.7]} 19. Nb6 {[%clk 0:01:27.2]} 19... Nd4 {[%clk
0:02:01.6]} 20. Rh1 {[%clk 0:01:17.5]} 20... Qf6 {[%clk 0:01:56.9]} 21. f4
{[%clk 0:00:55]} 21... Rbd8 {[%clk 0:01:54.2]} 22. Na4 {[%clk 0:00:18.6]} 22...
e5 {[%clk 0:01:39.3]} 23. Nc3 {[%clk 0:00:17.2]} 23... exf4 {[%clk 0:01:32.1]}
24. Nd5 {[%clk 0:00:17.6]} 24... f3+ {[%clk 0:01:28.9]} 25. Kf2 {[%clk
0:00:16.3]} 25... Qe6 {[%clk 0:01:25.4]} 26. Bg5 {[%clk 0:00:13.9]} 26... Rc8
{[%clk 0:01:20.2]} 27. Qf4 {[%clk 0:00:13.4]} 27... f5 {[%clk 0:01:15.3]} 28.
Qh4 {[%clk 0:00:12.6]} 28... h5 {[%clk 0:01:15.1]} 29. Ne7+ {[%clk 0:00:09.7]}
29... Kh7 {[%clk 0:01:11.3]} 30. Nxf5 {[%clk 0:00:08]} 30... Nxf5 {[%clk
0:01:09.3]} 31. g4 {[%clk 0:00:05.4]} 0-1

[Event "Late-Titled-Tuesday-Blitz-September-12-2023"]
[Site "Chess.com"]
[Date "2023.09.12"]
[Round "3"]
[White "Good_Knight_Kiss"]
[Black "C_K_G"]
[Result "1-0"]
[WhiteElo "2346"]
[BlackElo "2029"]
[TimeControl "180+1"]
[EndTime "14:25:53 PDT"]
[Termination "Good_Knight_Kiss won on time"]

1. e4 {[%clk 0:03:00.9]} 1... c5 {[%clk 0:02:49.8]} 2. Nf3 {[%clk 0:03:00.4]}
2... d6 {[%clk 0:02:49.7]} 3. d4 {[%clk 0:02:59.7]} 3... cxd4 {[%clk 0:02:49.8]}
4. Nxd4 {[%clk 0:02:56.5]} 4... Nf6 {[%clk 0:02:49.5]} 5. Nc3 {[%clk 0:02:53.3]}
5... a6 {[%clk 0:02:49.7]} 6. h3 {[%clk 0:02:49.3]} 6... e5 {[%clk 0:02:49.5]}
7. Nde2 {[%clk 0:02:48.9]} 7... Be7 {[%clk 0:02:48.5]} 8. g4 {[%clk 0:02:48.7]}
8... h6 {[%clk 0:02:47.1]} 9. Bg2 {[%clk 0:02:45.8]} 9... Be6 {[%clk 0:02:45.8]}
10. Be3 {[%clk 0:02:41.5]} 10... Nbd7 {[%clk 0:02:45.3]} 11. Qd2 {[%clk
0:02:41.6]} 11... b5 {[%clk 0:02:43.4]} 12. Ng3 {[%clk 0:02:35.6]} 12... Rc8
{[%clk 0:02:35.4]} 13. Nd5 {[%clk 0:02:33.4]} 13... Bxd5 {[%clk 0:02:03]} 14.
exd5 {[%clk 0:02:34.3]} 14... Nb6 {[%clk 0:02:00.2]} 15. b3 {[%clk 0:02:33.9]}
15... Qc7 {[%clk 0:01:53.1]} 16. O-O {[%clk 0:02:33]} 16... O-O {[%clk
0:01:38.7]} 17. Nf5 {[%clk 0:02:27.7]} 17... Rfe8 {[%clk 0:00:39.9]} 18. Bxh6
{[%clk 0:02:17.1]} 18... g6 {[%clk 0:00:27.4]} 19. Nxe7+ {[%clk 0:02:03.1]}
19... Rxe7 {[%clk 0:00:18.3]} 20. Bg5 {[%clk 0:01:59.9]} 20... Kg7 {[%clk
0:00:13.2]} 21. f4 {[%clk 0:01:54.7]} 21... Rd7 {[%clk 0:00:11.8]} 22. fxe5
{[%clk 0:01:52.5]} 22... Nh7 {[%clk 0:00:10.4]} 23. e6 {[%clk 0:01:12.3]} 23...
fxe6 {[%clk 0:00:04.6]} 24. dxe6 {[%clk 0:01:07.6]} 24... Re7 {[%clk 0:00:04.5]}
25. Bxe7 {[%clk 0:01:05.2]} 25... Qxe7 {[%clk 0:00:05.4]} 26. Rf7+ {[%clk
0:01:04.3]} 1-0